fUST/lending_fUST_20240424
["ID","MTS","AMOUNT","RATE_DAILY","PERIOD"]
[323371572,1713938737764,-2456.43661974,0.0004,30]
[323371573,1713938737787,-209.97303743,0.0004,120]
[323371574,1713938737810,-61258.42463597,0.0004,120]
[323371575,1713938737833,-154.92201399,0.0004,120]
[323371576,1713938737857,-192.49642634,0.00040172,30]
[323371577,1713938737880,-174.87103611,0.00040289,30]
[323371578,1713938737904,-192.49642634,0.00040332,30]
[323371579,1713938737928,-174.87103611,0.00040504,30]
[323371580,1713938737954,-1723.15726403,0.00040643,30]
[323371581,1713938737977,-265.39467506,0.00040833,30]
[323371582,1713938738000,-150.99229026,0.00040886,30]
[323371583,1713938738024,-1723.15726403,0.00040962,30]
[323371584,1713938738048,-60430.0,0.0004097,120]
[323371585,1713938738071,-1042.54,0.00041,120]
[323371586,1713938738093,-265.39467506,0.00041008,30]
[323371587,1713938738117,-174.87103611,0.00041057,30]
[323371588,1713938738141,-192.49642634,0.00041081,30]
[323371589,1713938738168,-705.6,0.00041095,120]
[323371590,1713938738193,-705.6,0.00041095,120]
[323371591,1713938738217,-705.6,0.00041095,120]
[323371592,1713938738239,-705.6,0.00041095,120]
[323371593,1713938738265,-705.6,0.00041095,120]
[323371594,1713938738288,-705.6,0.00041095,120]
[323371595,1713938738314,-705.6,0.00041095,120]
[323371596,1713938738338,-705.6,0.00041095,120]
[323371597,1713938738360,-705.6,0.00041095,120]
[323371598,1713938738382,-705.6,0.00041095,120]
[323371599,1713938738406,-705.6,0.00041095,120]
[323371600,1713938738430,-705.6,0.00041095,120]
[323371601,1713938738453,-705.6,0.00041095,120]
[323371602,1713938738476,-705.6,0.00041095,120]
[323371603,1713938738498,-705.6,0.00041095,120]
[323371604,1713938738520,-705.6,0.00041095,120]
[323371605,1713938738543,-546.66362086,0.00041095,120]
[323371606,1713938742904,-1584.45455669,0.0001808,7]
[323371607,1713938743053,-415.54544331,0.000238,7]
[323371608,1713938843144,-155.16059904,0.00011697,2]
[323371609,1713938843165,-2624.41567605,0.00014621,2]
[323371610,1713938843186,-300.0,0.00014621,2]
[323371611,1713938843206,-154.89846529,0.00014622,2]
[323371612,1713938843230,-256.66052479,0.00014622,2]
[323371613,1713938843251,-2856.54027768,0.00014622,2]
[323371614,1713938847089,-2406.469683,0.00014622,2]
[323371615,1713938946103,-1575.31939472,0.00011694,2]
[323371616,1713938946124,-154.79876161,0.00011695,2]
[323371617,1713938946144,-154.79876161,0.00011695,2]
[323371618,1713938946164,-1678.96711435,0.00011696,2]
[323371619,1713938946185,-927.87368973,0.00014,2]
[323371620,1713938946206,-1616.54270505,0.000146,2]
[323371621,1713938952115,-300.0,0.00014619,2]
[323371622,1713938952136,-300.0,0.00014619,2]
[323371623,1713938952156,-15177.87278111,0.0001462,2]
[323371624,1713938958114,-43991.86297629,0.0001462,2]
[323371625,1713938958135,-1217.93563777,0.00014621,2]
[323371626,1713938958155,-410038.6430462,0.00014621,2]
[323371627,1713938958175,-1095.77349914,0.00014625,2]
[323371628,1713938958195,-287.22529659,0.00015,2]
[323371629,1713938958215,-312.66661178,0.00015,2]
[323371630,1713938958235,-938.69803003,0.00015,2]
[323371631,1713938958257,-2099.79903615,0.00015,2]
[323371632,1713938958277,-154.79876161,0.00015,2]
[323371633,1713938958297,-682.88451301,0.00015,2]
[323371634,1713938958321,-154.79876161,0.00015,2]
[323371635,1713938958342,-1676.10589151,0.00015,2]
[323371636,1713938958363,-2776.29930889,0.00015,2]
[323371637,1713938958687,743.22431882,0.00014619,2]
[323371638,1713938963087,-125.63112363,0.00014619,2]
[323371639,1713938963109,-238.93971122,0.00016,2]
[323371640,1713938963130,-420.0,0.00016006,2]
[323371641,1713938963152,-420.0,0.00016081,2]
[323371642,1713938963740,1294.67916515,0.00015999,2]
[323371643,1713938966165,-154.79876161,0.00011695,2]
[323371644,1713938970306,-280.64022957,0.00015999,2]
[323371645,1713938970331,-154.79876161,0.00015999,2]
[323371646,1713938970440,154.82968425,0.00015,2]
[323371647,1713938971388,1116.41885267,0.00015,2]
[323371648,1713938974104,-559.68703884,0.00015,2]
[323371649,1713938974127,-1010.59441757,0.00015,2]
[323371650,1713938989935,154.79876161,0.00013068,2]
[323371651,1713939012318,156.51271142,0.00013068,2]
[323371778,1713939037874,-238.93971122,0.00016297,2]
[323371779,1713939037883,-417.0,0.00016298,2]
[323371780,1713939037895,-3297.0,0.000163,2]
[323371781,1713939037904,-300.0,0.00016333,2]
[323371782,1713939037922,-300.0,0.00016333,2]
[323371783,1713939037935,-154.91245883,0.00016334,2]
[323371784,1713939037944,-154.96394862,0.00016334,2]
[323371785,1713939037954,-185.94441437,0.00016334,2]
[323371786,1713939037963,-154.98551453,0.00016334,2]
[323371787,1713939037972,-154.8767742,0.00016334,2]
[323371788,1713939037981,-154.92306399,0.00016334,2]
[323371789,1713939037989,-154.9025669,0.00016334,2]
[323371790,1713939037999,-154.89463122,0.00016334,2]
[323371791,1713939038008,-155.13312338,0.00016334,2]
[323371792,1713939038017,-154.90940794,0.00016334,2]
[323371793,1713939038026,-155.88722999,0.00016335,2]
[323371794,1713939038035,-59169.7357574,0.00016335,2]
[323371795,1713939038044,-184.84247159,0.00016336,2]
[323371796,1713939038054,-301.07832754,0.00016336,2]
[323371797,1713939038063,-154.93451573,0.00016336,2]
[323371798,1713939038072,-180.29939571,0.00016336,2]
[323371799,1713939038081,-199.60946054,0.00016336,2]
[323371800,1713939038090,-160.59976227,0.00016336,2]
[323371801,1713939038099,-154.92930371,0.00016336,2]
[323371802,1713939038111,-157.06659545,0.00016336,2]
[323371803,1713939038121,-32501.96100194,0.00016336,2]
[323371804,1713939038130,-155.57729779,0.00016336,2]
[323371805,1713939038139,-312.66661178,0.00016336,2]
[323371806,1713939038150,-2776.29930889,0.00016336,2]
[323371807,1713939038159,-2099.79903615,0.00016337,2]
[323371808,1713939038169,-44444.0,0.00016338,2]
[323371809,1713939038180,-155.35508982,0.00016436,2]
[323371810,1713939038189,-500.0,0.00016437,2]
[323371811,1713939038198,-500.0,0.00016437,2]
[323371812,1713939038207,-500.0,0.00016437,2]
[323371813,1713939038217,-500.0,0.00016437,2]
[323371814,1713939038226,-500.0,0.00016437,2]
[323371815,1713939038235,-500.0,0.00016437,2]
[323371816,1713939038245,-500.0,0.00016437,2]
[323371817,1713939038254,-500.0,0.00016437,2]
[323371818,1713939038263,-500.0,0.00016437,2]
[323371819,1713939038272,-500.0,0.00016437,2]
[323371820,1713939038281,-500.0,0.00016437,2]
[323371821,1713939038290,-500.0,0.00016437,2]
[323371822,1713939038301,-500.0,0.00016437,2]
[323371823,1713939038310,-500.0,0.00016437,2]
[323371824,1713939038319,-275.37214622,0.00016437,2]
[323371825,1713939038328,-500.0,0.00016438,2]
[323371826,1713939038341,-500.0,0.00016438,2]
[323371827,1713939038351,-500.0,0.00016438,2]
[323371828,1713939038360,-500.0,0.00016438,2]
[323371829,1713939038370,-500.0,0.00016438,2]
[323371830,1713939038380,-1497.98,0.00016438,2]
[323371831,1713939038390,-500.0,0.00016438,2]
[323371832,1713939038399,-500.0,0.00016438,2]
[323371833,1713939038408,-500.0,0.00016438,2]
[323371834,1713939038420,-500.0,0.00016438,2]
[323371835,1713939038429,-500.0,0.00016438,2]
[323371836,1713939038438,-500.0,0.00016438,2]
[323371837,1713939038447,-599.64584797,0.00016438,2]
[323371838,1713939038456,-503.51296791,0.00016438,2]
[323371839,1713939038465,-500.0,0.00016438,2]
[323371840,1713939038473,-500.81982307,0.00016438,2]
[323371841,1713939038482,-500.60779908,0.00016438,2]
[323371842,1713939038491,-529.86,0.00016438,2]
[323371843,1713939038500,-564.8,0.00016438,2]
[323371844,1713939038513,-218.09013133,0.00016438,2]
[323371845,1713939038532,-500.0,0.00016438,2]
[323371846,1713939038541,-500.0,0.00016438,2]
[323371847,1713939038550,-156.23593361,0.00016438,2]
[323371848,1713939038559,-500.0,0.00016438,2]
[323371849,1713939038568,-500.0,0.00016438,2]
[323371850,1713939038577,-500.0,0.00016438,2]
[323371851,1713939038586,-204.36487611,0.00016438,2]
[323371852,1713939038595,-500.0,0.00016438,2]
[323371853,1713939038604,-611.52,0.00016438,2]
[323371854,1713939038613,-500.0,0.00016438,2]
[323371855,1713939038622,-500.0,0.00016438,2]
[323371856,1713939038630,-500.0,0.00016438,2]
[323371857,1713939038639,-500.0,0.00016438,2]
[323371858,1713939038648,-500.0,0.00016438,2]
[323371859,1713939038657,-500.0,0.00016438,2]
[323371860,1713939038667,-500.0,0.00016438,2]
[323371861,1713939038676,-500.0,0.00016438,2]
[323371862,1713939038685,-500.69191621,0.00016438,2]
[323371863,1713939038694,-500.0,0.00016438,2]
[323371864,1713939038703,-502.72103971,0.00016438,2]
[323371865,1713939038711,-500.0,0.00016438,2]
[323371866,1713939038720,-500.0,0.00016438,2]
[323371867,1713939038729,-500.0,0.00016438,2]
[323371868,1713939038738,-500.0,0.00016438,2]
[323371869,1713939038747,-500.0,0.00016438,2]
[323371870,1713939038756,-500.0,0.00016438,2]
[323371871,1713939038765,-500.0,0.00016438,2]
[323371872,1713939038774,-500.0,0.00016438,2]
[323371873,1713939038783,-500.0,0.00016438,2]
[323371874,1713939038792,-500.0,0.00016438,2]
[323371875,1713939038801,-500.0,0.00016438,2]
[323371876,1713939038809,-500.0,0.00016438,2]
[323371877,1713939038819,-500.0,0.00016438,2]
[323371878,1713939038828,-500.0,0.00016438,2]
[323371879,1713939038837,-500.0,0.00016438,2]
[323371880,1713939038846,-480.80965386,0.00016438,2]
[323371881,1713939038855,-500.0,0.00016438,2]
[323371882,1713939038863,-502.04529994,0.00016438,2]
[323371883,1713939038872,-500.0,0.00016438,2]
[323371884,1713939038881,-500.0,0.00016438,2]
[323371885,1713939038891,-500.0,0.00016438,2]
[323371886,1713939038900,-500.0,0.00016438,2]
[323371887,1713939038909,-610.42281034,0.00016438,2]
[323371888,1713939038920,-917.43,0.00016438,2]
[323371889,1713939038929,-500.0,0.00016438,2]
[323371890,1713939038937,-500.0,0.00016438,2]
[323371891,1713939038946,-602.15,0.00016438,2]
[323371892,1713939038956,-538.11,0.00016438,2]
[323371893,1713939038966,-500.0,0.00016438,2]
[323371894,1713939038975,-558.3874528,0.00016438,2]
[323371895,1713939038984,-201.00090847,0.00016438,2]
[323371896,1713939038992,-503.51866596,0.00016438,2]
[323371897,1713939039001,-500.0,0.00016438,2]
[323371898,1713939039010,-500.0,0.00016438,2]
[323371899,1713939039019,-500.0,0.00016438,2]
[323371900,1713939039027,-500.0,0.00016438,2]
[323371901,1713939039036,-610.11017992,0.00016438,2]
[323371902,1713939039045,-500.0,0.00016438,2]
[323371903,1713939039054,-500.0,0.00016438,2]
[323371904,1713939039062,-500.0,0.00016438,2]
[323371905,1713939039071,-1614.0,0.00016438,2]
[323371906,1713939039080,-500.0,0.00016438,2]
[323371907,1713939039089,-500.0,0.00016438,2]
[323371908,1713939039098,-643.05,0.00016438,2]
[323371909,1713939039107,-500.0,0.00016438,2]
[323371910,1713939039115,-500.0,0.00016438,2]
[323371911,1713939039124,-501.32989006,0.00016438,2]
[323371912,1713939039137,-500.0,0.00016438,2]
[323371913,1713939039147,-500.0,0.00016438,2]
[323371914,1713939039156,-500.0,0.00016438,2]
[323371915,1713939039166,-500.0,0.00016438,2]
[323371916,1713939039175,-500.0,0.00016438,2]
[323371917,1713939039184,-500.0,0.00016438,2]
[323371918,1713939039193,-500.0,0.00016438,2]
[323371919,1713939039202,-500.0,0.00016438,2]
[323371920,1713939039211,-500.0,0.00016438,2]
[323371921,1713939039220,-500.0,0.00016438,2]
[323371922,1713939039229,-1223.73,0.00016438,2]
[323371923,1713939039238,-500.0,0.00016438,2]
[323371924,1713939039247,-500.0,0.00016438,2]
[323371925,1713939039256,-500.0,0.00016438,2]
[323371926,1713939039268,-501.63269683,0.00016438,2]
[323371927,1713939039278,-500.0,0.00016438,2]
[323371928,1713939039287,-689.8,0.00016438,2]
[323371929,1713939039296,-500.0,0.00016438,2]
[323371930,1713939039305,-500.0,0.00016438,2]
[323371931,1713939039314,-500.0,0.00016438,2]
[323371932,1713939039323,-410.15120928,0.00016438,2]
[323371934,1713939039333,-500.0,0.00016438,2]
[323371936,1713939039343,-878.64,0.00016438,2]
[323371938,1713939039353,-506.72288247,0.00016438,2]
[323371940,1713939039362,-507.29413158,0.00016438,2]
[323371942,1713939039374,-500.0,0.00016438,2]
[323371943,1713939039383,-500.0,0.00016438,2]
[323371944,1713939039392,-500.0,0.00016438,2]
[323371946,1713939039543,-500.0,0.00016438,2]
[323371947,1713939039553,-500.0,0.00016438,2]
[323371948,1713939039563,-500.0,0.00016438,2]
[323371949,1713939039572,-500.0,0.00016438,2]
[323371950,1713939039580,-500.0,0.00016438,2]
[323371951,1713939039589,-507.72204126,0.00016438,2]
[323371952,1713939039599,-500.0,0.00016438,2]
[323371953,1713939039608,-500.0,0.00016438,2]
[323371954,1713939039617,-198.9656364,0.00016438,2]
[323371955,1713939039625,-500.0,0.00016438,2]
[323371956,1713939039634,-500.6276836,0.00016438,2]
[323371957,1713939039643,-500.0,0.00016438,2]
[323371958,1713939039652,-292.7,0.00016438,2]
[323371959,1713939039662,-500.0,0.00016438,2]
[323371960,1713939039671,-500.0,0.00016438,2]
[323371961,1713939039681,-505.55196948,0.00016438,2]
[323371963,1713939039690,-656.69,0.00016438,2]
[323371964,1713939039700,-500.0,0.00016438,2]
[323371966,1713939039710,-500.0,0.00016438,2]
[323371967,1713939039719,-500.0,0.00016438,2]
[323371968,1713939039728,-500.0,0.00016438,2]
[323371970,1713939039738,-500.0,0.00016438,2]
[323371972,1713939039747,-500.0,0.00016438,2]
[323371973,1713939039757,-500.0,0.00016438,2]
[323371974,1713939039767,-500.0,0.00016438,2]
[323371975,1713939039776,-500.0,0.00016438,2]
[323371977,1713939039786,-480.16175326,0.00016438,2]
[323371979,1713939039795,-500.0,0.00016438,2]
[323371981,1713939039804,-500.0,0.00016438,2]
[323371982,1713939039813,-500.0,0.00016438,2]
[323371984,1713939039822,-500.0,0.00016438,2]
[323371986,1713939039833,-500.0,0.00016438,2]
[323371987,1713939039843,-188.52681513,0.00016438,2]
[323371988,1713939039852,-500.0,0.00016438,2]
[323371989,1713939039861,-500.0,0.00016438,2]
[323371990,1713939039870,-500.0,0.00016438,2]
[323371992,1713939039879,-500.0,0.00016438,2]
[323371993,1713939039887,-1000.0,0.00016438,2]
[323371994,1713939039897,-500.0,0.00016438,2]
[323371995,1713939039906,-500.0,0.00016438,2]
[323371996,1713939039916,-492.3056364,0.00016438,2]
[323371998,1713939039925,-500.0,0.00016438,2]
[323371999,1713939039934,-500.0,0.00016438,2]
[323372000,1713939039944,-699.92,0.00016438,2]
[323372001,1713939039953,-913.02,0.00016438,2]
[323372002,1713939039962,-913.02,0.00016438,2]
[323372003,1713939039971,-913.02,0.00016438,2]
[323372004,1713939039981,-913.02,0.00016438,2]
[323372005,1713939039990,-913.02,0.00016438,2]
[323372006,1713939040000,-500.0,0.00016438,2]
[323372007,1713939040009,-913.02,0.00016438,2]
[323372008,1713939040018,-913.02,0.00016438,2]
[323372009,1713939040027,-913.02,0.00016438,2]
[323372010,1713939040037,-500.0,0.00016438,2]
[323372011,1713939040046,-500.0,0.00016438,2]
[323372012,1713939040055,-508.0276181,0.00016438,2]
[323372013,1713939040064,-500.0,0.00016438,2]
[323372014,1713939040073,-500.0,0.00016438,2]
[323372015,1713939040082,-500.0,0.00016438,2]
[323372016,1713939040091,-500.0,0.00016438,2]
[323372017,1713939040101,-507.9712587,0.00016438,2]
[323372018,1713939040110,-500.0,0.00016438,2]
[323372019,1713939040119,-500.0,0.00016438,2]
[323372020,1713939040128,-500.0,0.00016438,2]
[323372021,1713939040137,-500.0,0.00016438,2]
[323372022,1713939040147,-500.0,0.00016438,2]
[323372023,1713939040156,-500.0,0.00016438,2]
[323372024,1713939040166,-500.0,0.00016438,2]
[323372025,1713939040175,-382.42565676,0.00016438,2]
[323372026,1713939040184,-1579.56,0.00016438,2]
[323372027,1713939040194,-500.0,0.00016438,2]
[323372028,1713939040202,-500.0,0.00016438,2]
[323372029,1713939040211,-501.49946375,0.00016438,2]
[323372030,1713939040221,-500.0,0.00016438,2]
[323372031,1713939040230,-307.39805839,0.00016438,2]
[323372032,1713939040239,-500.0,0.00016438,2]
[323372033,1713939040248,-500.0,0.00016438,2]
[323372034,1713939040257,-1332.45,0.00016438,2]
[323372035,1713939040266,-500.0,0.00016438,2]
[323372036,1713939040275,-500.0,0.00016438,2]
[323372037,1713939040284,-501.01463896,0.00016438,2]
[323372038,1713939040293,-1426.82,0.00016438,2]
[323372039,1713939040302,-500.0,0.00016438,2]
[323372040,1713939040311,-500.0,0.00016438,2]
[323372041,1713939040320,-500.0,0.00016438,2]
[323372042,1713939040331,-500.0,0.00016438,2]
[323372043,1713939040341,-500.0,0.00016438,2]
[323372044,1713939040351,-500.0,0.00016438,2]
[323372045,1713939040360,-500.0,0.00016438,2]
[323372046,1713939040370,-500.0,0.00016438,2]
[323372047,1713939040380,-500.0,0.00016438,2]
[323372048,1713939040389,-514.86978296,0.00016438,2]
[323372049,1713939040399,-424.98933168,0.00016438,2]
[323372050,1713939040408,-500.0,0.00016438,2]
[323372051,1713939040419,-773.23,0.00016438,2]
[323372052,1713939040427,-500.0,0.00016438,2]
[323372053,1713939040437,-500.0,0.00016438,2]
[323372054,1713939040445,-500.0,0.00016438,2]
[323372055,1713939040454,-588.62107342,0.00016438,2]
[323372056,1713939040463,-500.0,0.00016438,2]
[323372057,1713939040472,-500.0,0.00016438,2]
[323372058,1713939040481,-500.0,0.00016438,2]
[323372059,1713939040490,-187.22870139,0.00016438,2]
[323372060,1713939040499,-500.0,0.00016438,2]
[323372061,1713939040508,-500.0,0.00016438,2]
[323372062,1713939040517,-500.0,0.00016438,2]
[323372063,1713939040526,-500.0,0.00016438,2]
[323372064,1713939040535,-500.0,0.00016438,2]
[323372065,1713939040544,-500.0,0.00016438,2]
[323372066,1713939040553,-500.0,0.00016438,2]
[323372067,1713939040562,-500.0,0.00016438,2]
[323372068,1713939040570,-500.0,0.00016438,2]
[323372069,1713939040580,-500.0,0.00016438,2]
[323372070,1713939040588,-500.0,0.00016438,2]
[323372071,1713939040597,-500.79984815,0.00016438,2]
[323372072,1713939040606,-721.12,0.00016438,2]
[323372073,1713939040615,-500.0,0.00016438,2]
[323372074,1713939040624,-500.0,0.00016438,2]
[323372075,1713939040633,-500.0,0.00016438,2]
[323372076,1713939040642,-500.66767919,0.00016438,2]
[323372077,1713939040651,-500.0,0.00016438,2]
[323372078,1713939040661,-500.0,0.00016438,2]
[323372079,1713939040670,-500.0,0.00016438,2]
[323372080,1713939040679,-507.7455405,0.00016438,2]
[323372081,1713939040689,-500.0,0.00016438,2]
[323372082,1713939040698,-819.1,0.00016438,2]
[323372083,1713939040707,-502.18138017,0.00016438,2]
[323372084,1713939040716,-500.0,0.00016438,2]
[323372085,1713939040725,-500.0,0.00016438,2]
[323372086,1713939040734,-500.0,0.00016438,2]
[323372087,1713939040743,-500.0,0.00016438,2]
[323372088,1713939040753,-500.0,0.00016438,2]
[323372089,1713939040762,-500.0,0.00016438,2]
[323372090,1713939040772,-500.0,0.00016438,2]
[323372091,1713939040780,-500.0,0.00016438,2]
[323372092,1713939040790,-500.0,0.00016438,2]
[323372093,1713939040799,-632.3669574,0.00016438,2]
[323372094,1713939040808,-500.0,0.00016438,2]
[323372095,1713939040817,-500.0,0.00016438,2]
[323372096,1713939040826,-500.0,0.00016438,2]
[323372097,1713939040835,-500.0,0.00016438,2]
[323372098,1713939040843,-155.46146298,0.00016438,2]
[323372099,1713939040852,-658.09,0.00016438,2]
[323372100,1713939040862,-500.0,0.00016438,2]
[323372101,1713939040871,-500.0,0.00016438,2]
[323372102,1713939040881,-886.63,0.00016438,2]
[323372103,1713939040890,-500.0,0.00016438,2]
[323372104,1713939040899,-500.28860774,0.00016438,2]
[323372105,1713939040908,-2094.5,0.00016438,2]
[323372106,1713939040919,-500.0,0.00016438,2]
[323372107,1713939040929,-500.0,0.00016438,2]
[323372108,1713939040938,-500.0,0.00016438,2]
[323372109,1713939040947,-500.0,0.00016438,2]
[323372110,1713939040956,-502.60297434,0.00016438,2]
[323372111,1713939040965,-611.61229877,0.00016438,2]
[323372112,1713939040974,-502.90736301,0.00016438,2]
[323372113,1713939040983,-502.26229951,0.00016438,2]
[323372114,1713939040993,-500.0,0.00016438,2]
[323372115,1713939041003,-500.30422608,0.00016438,2]
[323372116,1713939041012,-424.82908857,0.00016438,2]
[323372117,1713939041021,-500.5481455,0.00016438,2]
[323372118,1713939041031,-557.35,0.00016438,2]
[323372119,1713939041040,-500.0,0.00016438,2]
[323372120,1713939041049,-500.0,0.00016438,2]
[323372121,1713939041058,-500.0,0.00016438,2]
[323372122,1713939041068,-500.0,0.00016438,2]
[323372123,1713939041077,-500.0,0.00016438,2]
[323372124,1713939041086,-500.0,0.00016438,2]
[323372125,1713939041096,-851.8,0.00016438,2]
[323372126,1713939041104,-11113.41,0.00016438,2]
[323372127,1713939041114,-505.84810529,0.00016438,2]
[323372128,1713939041123,-500.0,0.00016438,2]
[323372129,1713939041133,-500.0,0.00016438,2]
[323372130,1713939041143,-500.0,0.00016438,2]
[323372131,1713939041152,-186.66324089,0.00016438,2]
[323372132,1713939041161,-1143.96,0.00016438,2]
[323372133,1713939041172,-687.86,0.00016438,2]
[323372134,1713939041181,-500.0,0.00016438,2]
[323372135,1713939041189,-500.0,0.00016438,2]
[323372136,1713939041198,-512.31997285,0.00016438,2]
[323372137,1713939041207,-500.0,0.00016438,2]
[323372138,1713939041216,-500.33849054,0.00016438,2]
[323372139,1713939041225,-500.0,0.00016438,2]
[323372140,1713939041233,-500.0,0.00016438,2]
[323372141,1713939041243,-500.0,0.00016438,2]
[323372142,1713939041252,-1563.7,0.00016438,2]
[323372143,1713939041261,-500.0,0.00016438,2]
[323372144,1713939041270,-500.0,0.00016438,2]
[323372145,1713939041280,-505.59078504,0.00016438,2]
[323372146,1713939041289,-500.0,0.00016438,2]
[323372147,1713939041298,-500.0,0.00016438,2]
[323372148,1713939041307,-500.0,0.00016438,2]
[323372149,1713939041316,-500.0,0.00016438,2]
[323372150,1713939041326,-500.0,0.00016438,2]
[323372151,1713939041339,-500.22,0.00016438,2]
[323372152,1713939041349,-500.0,0.00016438,2]
[323372153,1713939041358,-500.0,0.00016438,2]
[323372154,1713939041366,-500.0,0.00016438,2]
[323372155,1713939041376,-500.0,0.00016438,2]
[323372156,1713939041386,-500.0,0.00016438,2]
[323372157,1713939041395,-500.0,0.00016438,2]
[323372158,1713939041404,-500.0,0.00016438,2]
[323372159,1713939041417,-500.0,0.00016438,2]
[323372160,1713939041427,-500.0,0.00016438,2]
[323372161,1713939041436,-500.0,0.00016438,2]
[323372162,1713939041445,-503.35254873,0.00016438,2]
[323372163,1713939041454,-500.0,0.00016438,2]
[323372164,1713939041463,-500.0,0.00016438,2]
[323372165,1713939041472,-500.0,0.00016438,2]
[323372166,1713939041481,-501.54081291,0.00016438,2]
[323372167,1713939041492,-500.0,0.00016438,2]
[323372168,1713939041501,-1620.92,0.00016438,2]
[323372169,1713939041510,-500.0,0.00016438,2]
[323372170,1713939041519,-500.0,0.00016438,2]
[323372171,1713939041528,-513.22901312,0.00016438,2]
[323372172,1713939041537,-500.0,0.00016438,2]
[323372173,1713939041546,-2170.45,0.00016438,2]
[323372174,1713939041556,-739.39,0.00016438,2]
[323372175,1713939041566,-500.0,0.00016438,2]
[323372176,1713939041575,-500.0,0.00016438,2]
[323372177,1713939041585,-1471.05,0.00016438,2]
[323372178,1713939041593,-793.33,0.00016438,2]
[323372179,1713939041603,-530.3,0.00016438,2]
[323372180,1713939041612,-594.86,0.00016438,2]
[323372181,1713939041622,-530.3,0.00016438,2]
[323372182,1713939041631,-530.3,0.00016438,2]
[323372183,1713939041641,-1337.85,0.00016438,2]
[323372184,1713939041650,-530.3,0.00016438,2]
[323372185,1713939041660,-1871.21,0.00016438,2]
[323372186,1713939041671,-530.3,0.00016438,2]
[323372187,1713939041681,-1178.58,0.00016438,2]
[323372188,1713939041690,-530.3,0.00016438,2]
[323372189,1713939041699,-530.3,0.00016438,2]
[323372190,1713939041708,-530.3,0.00016438,2]
[323372191,1713939041719,-7283.64,0.00016438,2]
[323372192,1713939041728,-500.0,0.00016438,2]
[323372193,1713939041738,-710.03,0.00016438,2]
[323372194,1713939041748,-500.0,0.00016438,2]
[323372195,1713939041757,-500.0,0.00016438,2]
[323372196,1713939041766,-500.0,0.00016438,2]
[323372197,1713939041775,-1325.67,0.00016438,2]
[323372198,1713939041784,-500.0,0.00016438,2]
[323372199,1713939041793,-542.43,0.00016438,2]
[323372200,1713939041803,-500.0,0.00016438,2]
[323372201,1713939041813,-500.0,0.00016438,2]
[323372202,1713939041822,-1916.92,0.00016438,2]
[323372203,1713939041832,-6828.18,0.00016438,2]
[323372204,1713939041841,-8176.76,0.00016438,2]
[323372205,1713939041850,-500.0,0.00016438,2]
[323372206,1713939041859,-500.0,0.00016438,2]
[323372207,1713939041868,-234.01687267,0.00016438,2]
[323372208,1713939041877,-500.0,0.00016438,2]
[323372209,1713939041886,-500.0,0.00016438,2]
[323372210,1713939041896,-500.0,0.00016438,2]
[323372211,1713939041906,-500.0,0.00016438,2]
[323372212,1713939041917,-1001.14,0.00016438,2]
[323372213,1713939041926,-500.0,0.00016438,2]
[323372214,1713939041935,-500.0,0.00016438,2]